{"text_format":"1","workbook":"xlsx","n_sheets":3,"sheets":["Dialog1 ","Sheet1","Sheet2"],"not_rendered":{"charts":0,"images":0,"macros":1,"external_links":0,"defined_names":1,"comments":0,"pivot_tables":0},"unopened":[{"sheet":"Dialog1 ","index":0,"reason":"not_a_worksheet"}],"bounds":{"document_bytes":16777216,"sheet_cells":100000,"rows_first":2000,"rows_last":500,"rows_between":2000,"halvings":0,"cell_chars":16384,"cell_head_chars":4096},"cells_cut":0,"cells_raw":0,"read":"whole","date_system":"1900"}

{"sheet":"Sheet1","index":1,"n_rows":1386,"n_cols":8,"rows_kept":1386,"cut":false,"hidden":false,"merged":[]}
[]
[]
[]
[]
[]
["Reporting Period"]
["Reporting Company NAIC Number and Name "]
["Contact Person"]
["Street Address"]
["City"]
["State"]
["Zip Code (zip +4)"]
["Title"]
["Phone No."]
["E-Mail Address"]
["No of Notificiations received","Life",null,"Annuity"]
["Replacement Activity "]
[]
["NAIC No. of Reporting Company"," NAIC No. of Notified Company"," Name of Notified Company","Notified Company Pol No","Owners Last Name","Owners First Name","Reporting Company Agent Name ","Date Request sent"]
[{"$f":"IF(( B20>0),$B$7,\"\")","v":""}]
[""]
[""]
[""]
[""]
[""]
[""]
[""]
[""]
[""]
[""]
[""]
[""]
[""]
[""]
[""]
[""]
[""]
[""]
[""]
[""]
[""]
[""]
[""]
[""]
[""]
[""]
[""]
[""]
[""]
[""]
[""]
[""]
[""]
[""]
[""]
[""]
[""]
[""]
[""]
[""]
[""]
[""]
[""]
[""]
[""]
[""]
[""]
[""]
[""]
[""]
[""]
[""]
[""]
[""]
[""]
[""]
[""]
[""]
[""]
[""]
[""]
[""]
[""]
[""]
[{"$f":"IF(( B85>0),$B$7,\"\")","v":""}]
[""]
[""]
[""]
[""]
[""]
[""]
[""]
[""]
[""]
[""]
[""]
[""]
[""]
[""]
[""]
[""]
[""]
[""]
[""]
[""]
[""]
[""]
[""]
[""]
[""]
[""]
[""]
[""]
[""]
[""]
[""]
[""]
[""]
[""]
[""]
[""]
[""]
[""]
[""]
[""]
[""]
[""]
[""]
[""]
[""]
[""]
[""]
[""]
[""]
[""]
[""]
[""]
[""]
[""]
[""]
[""]
[""]
[""]
[""]
[""]
[""]
[""]
[""]
[{"$f":"IF(( B149>0),$B$7,\"\")","v":""}]
[""]
[""]
[""]
[""]
[""]
[""]
[""]
[""]
[""]
[""]
[""]
[""]
[""]
[""]
[""]
[""]
[""]
[""]
[""]
[""]
[""]
[""]
[""]
[""]
[""]
[""]
[""]
[""]
[""]
[""]
[""]
[""]
[""]
[""]
[""]
[""]
[""]
[""]
[""]
[""]
[""]
[""]
[""]
[""]
[""]
[""]
[""]
[""]
[""]
[""]
[""]
[""]
[""]
[""]
[""]
[""]
[""]
[""]
[""]
[""]
[""]
[""]
[""]
[{"$f":"IF(( B213>0),$B$7,\"\")","v":""}]
[""]
[""]
[""]
[""]
[""]
[""]
[""]
[""]
[""]
[""]
[""]
[""]
[""]
[""]
[""]
[""]
[""]
[""]
[""]
[""]
[""]
[""]
[""]
[""]
[""]
[""]
[""]
[""]
[""]
[""]
[""]
[""]
[""]
[""]
[""]
[""]
[""]
[""]
[""]
[""]
[""]
[""]
[""]
[""]
[""]
[""]
[""]
[""]
[""]
[""]
[""]
[""]
[""]
[""]
[""]
[""]
[""]
[""]
[""]
[""]
[""]
[""]
[""]
[{"$f":"IF(( B277>0),$B$7,\"\")","v":""}]
[""]
[""]
[""]
[""]
[""]
[""]
[""]
[""]
[""]
[""]
[""]
[""]
[""]
[""]
[""]
[""]
[""]
[""]
[""]
[""]
[""]
[""]
[""]
[""]
[""]
[""]
[""]
[""]
[""]
[""]
[""]
[""]
[""]
[""]
[""]
[""]
[""]
[""]
[""]
[""]
[""]
[""]
[""]
[""]
[""]
[""]
[""]
[""]
[""]
[""]
[""]
[""]
[""]
[""]
[""]
[""]
[""]
[""]
[""]
[""]
[""]
[""]
[""]
[{"$f":"IF(( B341>0),$B$7,\"\")","v":""}]
[""]
[""]
[""]
[""]
[""]
[""]
[""]
[""]
[""]
[""]
[""]
[""]
[""]
[""]
[""]
[""]
[""]
[""]
[""]
[""]
[""]
[""]
[""]
[""]
[""]
[""]
[""]
[""]
[""]
[""]
[""]
[""]
[""]
[""]
[""]
[""]
[""]
[""]
[""]
[""]
[""]
[""]
[""]
[""]
[""]
[""]
[""]
[""]
[""]
[""]
[""]
[""]
[""]
[""]
[""]
[""]
[""]
[""]
[""]
[""]
[""]
[""]
[""]
[{"$f":"IF(( B405>0),$B$7,\"\")","v":""}]
[""]
[""]
[""]
[""]
[""]
[""]
[""]
[""]
[""]
[""]
[""]
[""]
[""]
[""]
[""]
[{"$f":"IF(( B421>0),$A$7,\"\")","v":""}]
[""]
[""]
[""]
[""]
[""]
[""]
[""]
[""]
[""]
[""]
[""]
[""]
[""]
[""]
[""]
[""]
[""]
[""]
[""]
[""]
[""]
[""]
[""]
[""]
[""]
[""]
[""]
[""]
[""]
[""]
[""]
[""]
[""]
[""]
[""]
[""]
[""]
[""]
[""]
[""]
[""]
[""]
[""]
[""]
[""]
[""]
[""]
[{"$f":"IF(( B469>0),$A$7,\"\")","v":""}]
[""]
[""]
[""]
[""]
[""]
[""]
[""]
[""]
[""]
[""]
[""]
[""]
[""]
[""]
[""]
[""]
[""]
[""]
[""]
[""]
[""]
[""]
[""]
[""]
[""]
[""]
[""]
[""]
[""]
[""]
[""]
[""]
[""]
[""]
[""]
[""]
[""]
[""]
[""]
[""]
[""]
[""]
[""]
[""]
[""]
[""]
[""]
[""]
[""]
[""]
[""]
[""]
[""]
[""]
[""]
[""]
[""]
[""]
[""]
[""]
[""]
[""]
[""]
[{"$f":"IF(( B533>0),$A$7,\"\")","v":""}]
[""]
[""]
[""]
[""]
[""]
[""]
[""]
[""]
[""]
[""]
[""]
[""]
[""]
[""]
[""]
[""]
[""]
[""]
[""]
[""]
[""]
[""]
[""]
[""]
[""]
[""]
[""]
[""]
[""]
[""]
[""]
[""]
[""]
[""]
[""]
[""]
[""]
[""]
[""]
[""]
[""]
[""]
[""]
[""]
[""]
[""]
[""]
[""]
[""]
[""]
[""]
[""]
[""]
[""]
[""]
[""]
[""]
[""]
[""]
[""]
[""]
[""]
[""]
[{"$f":"IF(( B597>0),$A$7,\"\")","v":""}]
[""]
[""]
[""]
[""]
[""]
[""]
[""]
[""]
[""]
[""]
[""]
[""]
[""]
[""]
[""]
[""]
[""]
[""]
[""]
[""]
[""]
[""]
[""]
[""]
[""]
[""]
[""]
[""]
[""]
[""]
[""]
[""]
[""]
[""]
[""]
[""]
[""]
[""]
[""]
[""]
[""]
[""]
[""]
[""]
[""]
[""]
[""]
[""]
[""]
[""]
[""]
[""]
[""]
[""]
[""]
[""]
[""]
[""]
[""]
[""]
[""]
[""]
[""]
[{"$f":"IF(( B661>0),$A$7,\"\")","v":""}]
[""]
[""]
[""]
[""]
[""]
[""]
[""]
[""]
[""]
[""]
[""]
[""]
[""]
[""]
[""]
[""]
[""]
[""]
[""]
[""]
[""]
[""]
[""]
[""]
[""]
[""]
[""]
[""]
[""]
[""]
[""]
[""]
[""]
[""]
[""]
[""]
[""]
[""]
[""]
[""]
[""]
[""]
[""]
[""]
[""]
[""]
[""]
[""]
[""]
[""]
[""]
[""]
[""]
[""]
[""]
[""]
[""]
[""]
[""]
[""]
[""]
[""]
[""]
[{"$f":"IF(( B725>0),$A$7,\"\")","v":""}]
[""]
[""]
[""]
[""]
[""]
[""]
[""]
[""]
[""]
[""]
[""]
[""]
[""]
[""]
[""]
[""]
[""]
[""]
[""]
[""]
[""]
[""]
[""]
[""]
[""]
[""]
[""]
[""]
[""]
[""]
[""]
[""]
[""]
[""]
[""]
[""]
[""]
[""]
[""]
[""]
[""]
[""]
[""]
[""]
[""]
[""]
[""]
[""]
[""]
[""]
[""]
[""]
[""]
[""]
[""]
[""]
[""]
[""]
[""]
[""]
[""]
[""]
[""]
[{"$f":"IF(( B789>0),$A$7,\"\")","v":""}]
[""]
[""]
[""]
[""]
[""]
[""]
[""]
[""]
[""]
[""]
[""]
[""]
[""]
[""]
[""]
[""]
[""]
[""]
[""]
[""]
[""]
[""]
[""]
[""]
[""]
[""]
[""]
[""]
[""]
[""]
[""]
[""]
[""]
[""]
[""]
[""]
[""]
[""]
[""]
[""]
[""]
[""]
[""]
[""]
[""]
[""]
[""]
[""]
[""]
[""]
[""]
[""]
[""]
[""]
[""]
[""]
[""]
[""]
[""]
[""]
[""]
[""]
[""]
[{"$f":"IF(( B853>0),$A$7,\"\")","v":""}]
[""]
[""]
[""]
[""]
[""]
[""]
[""]
[""]
[""]
[""]
[""]
[""]
[""]
[""]
[""]
[""]
[""]
[""]
[""]
[""]
[""]
[""]
[""]
[""]
[""]
[""]
[""]
[""]
[""]
[""]
[""]
[""]
[""]
[""]
[""]
[""]
[""]
[""]
[""]
[""]
[""]
[""]
[""]
[""]
[""]
[""]
[""]
[""]
[""]
[""]
[""]
[""]
[""]
[""]
[""]
[""]
[""]
[""]
[""]
[""]
[""]
[""]
[""]
[{"$f":"IF(( B917>0),$A$7,\"\")","v":""}]
[""]
[""]
[""]
[""]
[""]
[""]
[""]
[""]
[""]
[""]
[""]
[""]
[""]
[""]
[""]
[""]
[""]
[""]
[""]
[""]
[""]
[""]
[""]
[""]
[""]
[""]
[""]
[""]
[""]
[""]
[""]
[""]
[""]
[""]
[""]
[""]
[""]
[""]
[""]
[""]
[""]
[""]
[""]
[""]
[""]
[""]
[""]
[""]
[""]
[""]
[""]
[""]
[""]
[""]
[""]
[""]
[""]
[""]
[""]
[""]
[""]
[""]
[""]
[{"$f":"IF(( B981>0),$A$7,\"\")","v":""}]
[""]
[""]
[""]
[""]
[""]
[""]
[""]
[""]
[""]
[""]
[""]
[""]
[""]
[""]
[""]
[""]
[""]
[""]
[""]
[""]
[""]
[""]
[""]
[""]
[""]
[""]
[""]
[""]
[""]
[""]
[""]
[""]
[""]
[""]
[""]
[""]
[""]
[""]
[""]
[""]
[""]
[""]
[""]
[""]
[""]
[""]
[""]
[""]
[""]
[""]
[""]
[""]
[""]
[""]
[""]
[""]
[""]
[""]
[""]
[""]
[""]
[""]
[""]
[{"$f":"IF(( B1045>0),$A$7,\"\")","v":""}]
[""]
[""]
[""]
[""]
[""]
[""]
[""]
[""]
[""]
[""]
[""]
[""]
[""]
[""]
[""]
[""]
[""]
[""]
[""]
[""]
[""]
[""]
[""]
[""]
[""]
[""]
[""]
[""]
[""]
[""]
[""]
[""]
[""]
[""]
[""]
[""]
[""]
[""]
[""]
[""]
[""]
[""]
[""]
[""]
[""]
[""]
[""]
[""]
[""]
[""]
[""]
[""]
[""]
[""]
[""]
[""]
[""]
[""]
[""]
[""]
[""]
[""]
[""]
[{"$f":"IF(( B1109>0),$A$7,\"\")","v":""}]
[""]
[""]
[""]
[""]
[""]
[""]
[""]
[""]
[""]
[""]
[""]
[""]
[""]
[""]
[""]
[""]
[""]
[""]
[""]
[""]
[""]
[""]
[""]
[""]
[""]
[""]
[""]
[""]
[""]
[""]
[""]
[""]
[""]
[""]
[""]
[""]
[""]
[""]
[""]
[""]
[""]
[""]
[""]
[""]
[""]
[""]
[""]
[""]
[""]
[""]
[""]
[""]
[""]
[""]
[""]
[""]
[""]
[""]
[""]
[""]
[""]
[""]
[""]
[{"$f":"IF(( B1173>0),$A$7,\"\")","v":""}]
[""]
[""]
[""]
[""]
[""]
[""]
[""]
[""]
[""]
[""]
[""]
[""]
[""]
[""]
[""]
[""]
[""]
[""]
[""]
[""]
[""]
[""]
[""]
[""]
[""]
[""]
[""]
[""]
[""]
[""]
[""]
[""]
[""]
[""]
[""]
[""]
[""]
[""]
[""]
[""]
[""]
[""]
[""]
[""]
[""]
[""]
[""]
[""]
[""]
[""]
[""]
[""]
[""]
[""]
[""]
[""]
[""]
[""]
[""]
[""]
[""]
[""]
[""]
[{"$f":"IF(( B1237>0),$A$7,\"\")","v":""}]
[""]
[""]
[""]
[""]
[""]
[""]
[""]
[""]
[""]
[""]
[""]
[""]
[""]
[""]
[""]
[""]
[""]
[""]
[""]
[""]
[""]
[""]
[""]
[""]
[""]
[""]
[""]
[""]
[""]
[""]
[""]
[""]
[""]
[""]
[""]
[""]
[""]
[""]
[""]
[""]
[""]
[""]
[""]
[""]
[""]
[""]
[""]
[""]
[""]
[""]
[""]
[""]
[""]
[""]
[""]
[""]
[""]
[""]
[""]
[""]
[""]
[""]
[""]
[{"$f":"IF(( B1301>0),$A$7,\"\")","v":""}]
[""]
[""]
[""]
[""]
[""]
[""]
[""]
[""]
[""]
[""]
[""]
[""]
[""]
[""]
[""]
[""]
[""]
[""]
[""]
[""]
[""]
[""]
[""]
[""]
[""]
[""]
[""]
[""]
[""]
[""]
[""]
[""]
[""]
[""]
[""]
[""]
[""]
[""]
[""]
[""]
[""]
[""]
[""]
[""]
[""]
[""]
[""]
[""]
[""]
[""]
[""]
[""]
[""]
[""]
[""]
[""]
[""]
[""]
[""]
[""]
[""]
[""]
[""]
[{"$f":"IF(( B1365>0),$A$7,\"\")","v":""}]
[""]
[""]
[""]
[""]
[""]
[""]
[""]
[""]
[""]
[""]
[""]
[""]
[""]
[""]
[""]
[""]
[""]
[""]
[""]
[""]
[""]

{"sheet":"Sheet2","index":2,"n_rows":182,"n_cols":4,"rows_kept":182,"cut":false,"hidden":true,"merged":[]}
[80985,"4 Ever Life Insurance Company",{"$f":"+A1&\" (\"&B1&\")\"","v":"80985 (4 Ever Life Insurance Company)"},{"$f":"+A1&\"     \"&B1","v":"80985     4 Ever Life Insurance Company"}]
[15282,"AAA Life Insurance Company of NY","15282 (AAA Life Insurance Company of NY)","15282     AAA Life Insurance Company of NY"]
[60054,"Aetna Life Insurance Company","60054 (Aetna Life Insurance Company)","60054     Aetna Life Insurance Company"]
[64190,"Allianz Life Insurance Company of New York","64190 (Allianz Life Insurance Company of New York)","64190     Allianz Life Insurance Company of New York"]
[70866,"Allstate Assurance Company","70866 (Allstate Assurance Company)","70866     Allstate Assurance Company"]
[70874,"Allstate Life Insurance Company of New York","70874 (Allstate Life Insurance Company of New York)","70874     Allstate Life Insurance Company of New York"]
[60216,"Amalgamated Life Insurance Company","60216 (Amalgamated Life Insurance Company)","60216     Amalgamated Life Insurance Company"]
[11135,"American Equity Investment Life Insurance Company of New York","11135 (American Equity Investment Life Insurance Company of New York)","11135     American Equity Investment Life Insurance Company of New York"]
[60526,"American Family Life Assurance Company of New York","60526 (American Family Life Assurance Company of New York)","60526     American Family Life Assurance Company of New York"]
[81213,"American Maturity Life Insurance Company","81213 (American Maturity Life Insurance Company)","81213     American Maturity Life Insurance Company"]
[81418,"American Medical and Life Insurance Company","81418 (American Medical and Life Insurance Company)","81418     American Medical and Life Insurance Company"]
[65811,"American Modern Life Insurance Company","65811 (American Modern Life Insurance Company)","65811     American Modern Life Insurance Company"]
[63126,"American National Life Insurance Company of New York (Farm Family Life Insurance Company)",{"$f":"+A13&\" (\"&B13&\")\"","v":"63126 (American National Life Insurance Company of New York (Farm Family Life Insurance Company))"},{"$f":"+A13&\"     \"&B13","v":"63126     American National Life Insurance Company of New York (Farm Family Life Insurance Company)"}]
[80624,"American Progressive Life and Health Insurance Company of New York","80624 (American Progressive Life and Health Insurance Company of New York)","80624     American Progressive Life and Health Insurance Company of New York"]
[60033,"Ameritas Life Insurance Corp. of New York","60033 (Ameritas Life Insurance Corp. of New York)","60033     Ameritas Life Insurance Corp. of New York"]
[72222,"Amica Life Insurance Company","72222 (Amica Life Insurance Company)","72222     Amica Life Insurance Company"]
[13573,"Anthem Life & Disability Insurance Company","13573 (Anthem Life & Disability Insurance Company)","13573     Anthem Life & Disability Insurance Company"]
[57150,"Association of the Sons of Poland",{"$f":"+A18&\" (\"&B18&\")\"","v":"57150 (Association of the Sons of Poland)"},{"$f":"+A18&\"     \"&B18","v":"57150     Association of the Sons of Poland"}]
[15940,"Assurity Life Insurance Company of New York",{"$f":"+A19&\" (\"&B19&\")\"","v":"15940 (Assurity Life Insurance Company of New York)"},{"$f":"+A19&\"     \"&B19","v":"15940     Assurity Life Insurance Company of New York"}]
[68039,"Athene  Annuity & Life Assurance Company of New York (Presidential Life)",{"$f":"+A20&\" (\"&B20&\")\"","v":"68039 (Athene  Annuity & Life Assurance Company of New York (Presidential Life))"},{"$f":"+A20&\"     \"&B20","v":"68039     Athene  Annuity & Life Assurance Company of New York (Presidential Life)"}]
[63932,"Athene Life Insurance Company of New York (Aviva Life and Annuity)","63932 (Athene Life Insurance Company of New York (Aviva Life and Annuity))","63932     Athene Life Insurance Company of New York (Aviva Life and Annuity)"]
[10097,"Balboa Life Insurance Company of New York","10097 (Balboa Life Insurance Company of New York)","10097     Balboa Life Insurance Company of New York"]
[68560,"Bankers Conseco Life Insurance Company","68560 (Bankers Conseco Life Insurance Company)","68560     Bankers Conseco Life Insurance Company"]
[61298,"Bankers Life Ins Co of Louisiana","61298 (Bankers Life Ins Co of Louisiana)","61298     Bankers Life Ins Co of Louisiana"]
[57223,"Baptist Life Association","57223 (Baptist Life Association)","57223     Baptist Life Association"]
[64890,"Berkley Life and Health Insurance Company","64890 (Berkley Life and Health Insurance Company)","64890     Berkley Life and Health Insurance Company"]
[71714,"Berkshire Life Insurance Company of America","71714 (Berkshire Life Insurance Company of America)","71714     Berkshire Life Insurance Company of America"]
[60992,"Brighthouse Life Ins. Co. of NY (Formerly First MetLife Investors Insurance Company)",{"$f":"+A28&\" (\"&B28&\")\"","v":"60992 (Brighthouse Life Ins. Co. of NY (Formerly First MetLife Investors Insurance Company))"},{"$f":"+A28&\"     \"&B28","v":"60992     Brighthouse Life Ins. Co. of NY (Formerly First MetLife Investors Insurance Company)"}]
[81000,"Cambridge Life Insurance Company","81000 (Cambridge Life Insurance Company)","81000     Cambridge Life Insurance Company"]
[80896,"Centre Life Insurance Company","80896 (Centre Life Insurance Company)","80896     Centre Life Insurance Company"]
[61875,"Church Life Insurance Corporation","61875 (Church Life Insurance Corporation)","61875     Church Life Insurance Corporation"]
[67369,"CIGNA Health & Life Insurance Company","67369 (CIGNA Health & Life Insurance Company)","67369     CIGNA Health & Life Insurance Company"]
[62626,"CMFG Life Insurance Company","62626 (CMFG Life Insurance Company)","62626     CMFG Life Insurance Company"]
[62103,"Columbian Mutual Life Insurance Company","62103 (Columbian Mutual Life Insurance Company)","62103     Columbian Mutual Life Insurance Company"]
[78697,"Combined Life Insurance Company of New York",{"$f":"+A35&\" (\"&B35&\")\"","v":"78697 (Combined Life Insurance Company of New York)"},{"$f":"+A35&\"     \"&B35","v":"78697     Combined Life Insurance Company of New York"}]
[81426,"Commercial Travelers Life Ins Co",{"$f":"+A36&\" (\"&B36&\")\"","v":"81426 (Commercial Travelers Life Ins Co)"},{"$f":"+A36&\"     \"&B36","v":"81426     Commercial Travelers Life Ins Co"}]
[62243,"Companion Life Insurance Company","62243 (Companion Life Insurance Company)","62243     Companion Life Insurance Company"]
[62308,"Connecticut General Life Insurance Company","62308 (Connecticut General Life Insurance Company)","62308     Connecticut General Life Insurance Company"]
[68365,"Corporate Solutions Life Reins Co (AXA Corporate Solutions Life Reinsurance Company)",{"$f":"+A39&\" (\"&B39&\")\"","v":"68365 (Corporate Solutions Life Reins Co (AXA Corporate Solutions Life Reinsurance Company))"},{"$f":"+A39&\"     \"&B39","v":"68365     Corporate Solutions Life Reins Co (AXA Corporate Solutions Life Reinsurance Company)"}]
[56634,"Croatian Fraternal Union of America","56634 (Croatian Fraternal Union of America)","56634     Croatian Fraternal Union of America"]
[56138,"Czechoslovak Society of America","56138 (Czechoslovak Society of America)","56138     Czechoslovak Society of America"]
[85090,"Dearborn National Life Insurance Company of New York","85090 (Dearborn National Life Insurance Company of New York)","85090     Dearborn National Life Insurance Company of New York"]
[62634,"Delaware American Life Insurance Co","62634 (Delaware American Life Insurance Co)","62634     Delaware American Life Insurance Co"]
[72664,"Delaware Life Insurance Company of New York (formerly Sun Life Ins & Annuity Co of NY)",{"$f":"+A44&\" (\"&B44&\")\"","v":"72664 (Delaware Life Insurance Company of New York (formerly Sun Life Ins & Annuity Co of NY))"},{"$f":"+A44&\"     \"&B44","v":"72664     Delaware Life Insurance Company of New York (formerly Sun Life Ins & Annuity Co of NY)"}]
[62944,"Equitable Financial Life Insurance Company (AXA Equitable Life Insurance Company)",{"$f":"+A45&\" (\"&B45&\")\"","v":"62944 (Equitable Financial Life Insurance Company (AXA Equitable Life Insurance Company))"},{"$f":"+A45&\"     \"&B45","v":"62944     Equitable Financial Life Insurance Company (AXA Equitable Life Insurance Company)"}]
[71228,"Empire Fidelity Investments Life Insurance Company","71228 (Empire Fidelity Investments Life Insurance Company)","71228     Empire Fidelity Investments Life Insurance Company"]
[63258,"Federated Life Insurance Company","63258 (Federated Life Insurance Company)","63258     Federated Life Insurance Company"]
[69434,"Fidelity & Guaranty Life Insurance Company of New York","69434 (Fidelity & Guaranty Life Insurance Company of New York)","69434     Fidelity & Guaranty Life Insurance Company of New York"]
[67288,"Fidelity Security Life Insurance Company of New York (Great American)",{"$f":"+A49&\" (\"&B49&\")\"","v":"67288 (Fidelity Security Life Insurance Company of New York (Great American))"},{"$f":"+A49&\"     \"&B49","v":"67288     Fidelity Security Life Insurance Company of New York (Great American)"}]
[69140,"First Allmerica Financial Life Insurance Company","69140 (First Allmerica Financial Life Insurance Company)","69140     First Allmerica Financial Life Insurance Company"]
[11591,"First Berkshire Hathaway Life Insurance Company","11591 (First Berkshire Hathaway Life Insurance Company)","11591     First Berkshire Hathaway Life Insurance Company"]
[56332,"First Catholic Slovak Ladies Association of the United States of America","56332 (First Catholic Slovak Ladies Association of the United States of America)","56332     First Catholic Slovak Ladies Association of the United States of America"]
[56340,"First Catholic Slovak Union of the United States of America and Canada","56340 (First Catholic Slovak Union of the United States of America and Canada)","56340     First Catholic Slovak Union of the United States of America and Canada"]
[90328,"First Health Life & Health Insurance Company","90328 (First Health Life & Health Insurance Company)","90328     First Health Life & Health Insurance Company"]
[71005,"First Reliance Standard Life Insurance Company","71005 (First Reliance Standard Life Insurance Company)","71005     First Reliance Standard Life Insurance Company"]
[60084,"First Security Benefit Life Insurance and Annuity Company of New York","60084 (First Security Benefit Life Insurance and Annuity Company of New York)","60084     First Security Benefit Life Insurance and Annuity Company of New York"]
[78417,"First Symetra National Life Insurance Company of New York","78417 (First Symetra National Life Insurance Company of New York)","78417     First Symetra National Life Insurance Company of New York"]
[64297,"First Unum Life Insurance Company","64297 (First Unum Life Insurance Company)","64297     First Unum Life Insurance Company"]
[63495,"Foresters Life Insurance and Annuity Company (formerly First Investors Life Insurance Co)",{"$f":"+A59&\" (\"&B59&\")\"","v":"63495 (Foresters Life Insurance and Annuity Company (formerly First Investors Life Insurance Co))"},{"$f":"+A59&\"     \"&B59","v":"63495     Foresters Life Insurance and Annuity Company (formerly First Investors Life Insurance Co)"}]
[63657,"Garden State Life Insurance Company","63657 (Garden State Life Insurance Company)","63657     Garden State Life Insurance Company"]
[56685,"GBU Financial Life","56685 (GBU Financial Life)","56685     GBU Financial Life"]
[72990,"Genworth Life Insurance Co of New York","72990 (Genworth Life Insurance Co of New York)","72990     Genworth Life Insurance Co of New York"]
[70939,"Gerber Life Insurance Company","70939 (Gerber Life Insurance Company)","70939     Gerber Life Insurance Company"]
[74101,"Globe Life Ins. Co. of NY (Formerly First United American Life Insurance Company)",{"$f":"+A64&\" (\"&B64&\")\"","v":"74101 (Globe Life Ins. Co. of NY (Formerly First United American Life Insurance Company))"},{"$f":"+A64&\"     \"&B64","v":"74101     Globe Life Ins. Co. of NY (Formerly First United American Life Insurance Company)"}]
[79359,"Great-West Life & Annuity Company of New York","79359 (Great-West Life & Annuity Company of New York)","79359     Great-West Life & Annuity Company of New York"]
[56693,"Greek Catholic Union of the U. S. A.","56693 (Greek Catholic Union of the U. S. A.)","56693     Greek Catholic Union of the U. S. A."]
[78778,"Guardian Insurance & Annuity Company, Inc.",{"$f":"+A67&\" (\"&B67&\")\"","v":"78778 (Guardian Insurance & Annuity Company, Inc.)"},{"$f":"+A67&\"     \"&B67","v":"78778     Guardian Insurance & Annuity Company, Inc."}]
[64246,"Guardian Life Insurance Company of America","64246 (Guardian Life Insurance Company of America)","64246     Guardian Life Insurance Company of America"]
[70815,"Hartford Life & Accident Insurance Company","70815 (Hartford Life & Accident Insurance Company)","70815     Hartford Life & Accident Insurance Company"]
[92711,"HCC Life Insurance Company","92711 (HCC Life Insurance Company)","92711     HCC Life Insurance Company"]
[60213,"HM Life Insurance Company of New York","60213 (HM Life Insurance Company of New York)","60213     HM Life Insurance Company of New York"]
[58068,"Independent Order of Foresters","58068 (Independent Order of Foresters)","58068     Independent Order of Foresters"]
[57509,"Independent Order of Vikings","57509 (Independent Order of Vikings)","57509     Independent Order of Vikings"]
[64831,"Intramerica Life Insurance Company","64831 (Intramerica Life Insurance Company)","64831     Intramerica Life Insurance Company"]
[60140,"Jackson National Life Insurance Company of New York","60140 (Jackson National Life Insurance Company of New York)","60140     Jackson National Life Insurance Company of New York"]
[15727,"Jefferson National Life Insurance Company of New York","15727 (Jefferson National Life Insurance Company of New York)","15727     Jefferson National Life Insurance Company of New York"]
[93610,"John Hancock Life and Health Insurance Company","93610 (John Hancock Life and Health Insurance Company)","93610     John Hancock Life and Health Insurance Company"]
[86375,"John Hancock Life Insurance Company of New York","86375 (John Hancock Life Insurance Company of New York)","86375     John Hancock Life Insurance Company of New York"]
[58033,"Knights of Columbus","58033 (Knights of Columbus)","58033     Knights of Columbus"]
[78140,"Life Insurance Company of Boston & New York","78140 (Life Insurance Company of Boston & New York)","78140     Life Insurance Company of Boston & New York"]
[65315,"Lincoln Life Assurance Co of Boston (Liberty Life Assurance Company of Boston)",{"$f":"+A81&\" (\"&B81&\")\"","v":"65315 (Lincoln Life Assurance Co of Boston (Liberty Life Assurance Company of Boston))"},{"$f":"+A81&\"     \"&B81","v":"65315     Lincoln Life Assurance Co of Boston (Liberty Life Assurance Company of Boston)"}]
[62057,"Lincoln Life & Annuity Company of New York","62057 (Lincoln Life & Annuity Company of New York)","62057     Lincoln Life & Annuity Company of New York"]
[73059,"Lombard International Life Assurance Co of NY (Philadelphia Financial Life Assur Co of NY)",{"$f":"+A83&\" (\"&B83&\")\"","v":"73059 (Lombard International Life Assurance Co of NY (Philadelphia Financial Life Assur Co of NY))"},{"$f":"+A83&\"     \"&B83","v":"73059     Lombard International Life Assurance Co of NY (Philadelphia Financial Life Assur Co of NY)"}]
[56758,"Loyal Christian Benefit Association","56758 (Loyal Christian Benefit Association)","56758     Loyal Christian Benefit Association"]
[16473,"Lumico Life Insurance Company of New York","16473 (Lumico Life Insurance Company of New York)","16473     Lumico Life Insurance Company of New York"]
[65870,"Manhattan Life Insurance Company","65870 (Manhattan Life Insurance Company)","65870     Manhattan Life Insurance Company"]
[65935,"Massachusetts Mutual Life Insurance Company","65935 (Massachusetts Mutual Life Insurance Company)","65935     Massachusetts Mutual Life Insurance Company"]
[87726,"MetLife Insurance Company of Connecticut","87726 (MetLife Insurance Company of Connecticut)","87726     MetLife Insurance Company of Connecticut"]
[65978,"Metropolitan Life Insurance Company","65978 (Metropolitan Life Insurance Company)","65978     Metropolitan Life Insurance Company"]
[97136,"Metropolitan Tower Life Insurance Company","97136 (Metropolitan Tower Life Insurance Company)","97136     Metropolitan Tower Life Insurance Company"]
[61522,"MII Life Insurance Inc.","61522 (MII Life Insurance Inc.)","61522     MII Life Insurance Inc."]
[57541,"Modern Woodmen of America","57541 (Modern Woodmen of America)","57541     Modern Woodmen of America"]
[66265,"Monarch Life Insurance Company","66265 (Monarch Life Insurance Company)","66265     Monarch Life Insurance Company"]
[81442,"Monitor Life Insurance Company of New York","81442 (Monitor Life Insurance Company of New York)","81442     Monitor Life Insurance Company of New York"]
[66370,"MONY Life Insurance Company","66370 (MONY Life Insurance Company)","66370     MONY Life Insurance Company"]
[56251,"Mutual Beneficial Association, Inc.","56251 (Mutual Beneficial Association, Inc.)","56251     Mutual Beneficial Association, Inc."]
[88668,"Mutual of America Life Insurance Company","88668 (Mutual of America Life Insurance Company)","88668     Mutual of America Life Insurance Company"]
[67814,"Nassau Life Ins Co (Phoenix Life Insurance Company)",{"$f":"+A98&\" (\"&B98&\")\"","v":"67814 (Nassau Life Ins Co (Phoenix Life Insurance Company))"},{"$f":"+A98&\"     \"&B98","v":"67814     Nassau Life Ins Co (Phoenix Life Insurance Company)"}]
[61409,"National Benefit Life Insurance Company","61409 (National Benefit Life Insurance Company)","61409     National Benefit Life Insurance Company"]
[10093,"National Income Life Insurance Company","10093 (National Income Life Insurance Company)","10093     National Income Life Insurance Company"]
[75264,"National Integrity Life Insurance Company","75264 (National Integrity Life Insurance Company)","75264     National Integrity Life Insurance Company"]
[66680,"National Life Insurance Company","66680 (National Life Insurance Company)","66680     National Life Insurance Company"]
[85472,"National Security Life and Annuity Company",{"$f":"+A103&\" (\"&B103&\")\"","v":"85472 (National Security Life and Annuity Company)"},{"$f":"+A103&\"     \"&B103","v":"85472     National Security Life and Annuity Company"}]
[56782,"National Slovak Society of the United States of America","56782 (National Slovak Society of the United States of America)","56782     National Slovak Society of the United States of America"]
[66869,"Nationwide Life Insurance Company","66869 (Nationwide Life Insurance Company)","66869     Nationwide Life Insurance Company"]
[91626,"New England Life Insurance Company","91626 (New England Life Insurance Company)","91626     New England Life Insurance Company"]
[64548,"New York Life Group Ins Co of NY (Formerly CIGNA Life Insurance Company of New York)",{"$f":"+A107&\" (\"&B107&\")\"","v":"64548 (New York Life Group Ins Co of NY (Formerly CIGNA Life Insurance Company of New York))"},{"$f":"+A107&\"     \"&B107","v":"64548     New York Life Group Ins Co of NY (Formerly CIGNA Life Insurance Company of New York)"}]
[91596,"New York Life Insurance and Annuity Corporation","91596 (New York Life Insurance and Annuity Corporation)","91596     New York Life Insurance and Annuity Corporation"]
[66915,"New York Life Insurance Company","66915 (New York Life Insurance Company)","66915     New York Life Insurance Company"]
[12285,"Niagara Life and Health Insurance Company","12285 (Niagara Life and Health Insurance Company)","12285     Niagara Life and Health Insurance Company"]
[81264,"Nippon Life Insurance Company of America","81264 (Nippon Life Insurance Company of America)","81264     Nippon Life Insurance Company of America"]
[67091,"Northwestern Mutual Life Insurance Company","67091 (Northwestern Mutual Life Insurance Company)","67091     Northwestern Mutual Life Insurance Company"]
[15320,"NTA Life Insurance Company of America","15320 (NTA Life Insurance Company of America)","15320     NTA Life Insurance Company of America"]
[56383,"Order of United Commercial Travelers of America","56383 (Order of United Commercial Travelers of America)","56383     Order of United Commercial Travelers of America"]
[97268,"Pacific Life & Annuity Company","97268 (Pacific Life & Annuity Company)","97268     Pacific Life & Annuity Company"]
[67598,"Paul Revere Life Insurance Company","67598 (Paul Revere Life Insurance Company)","67598     Paul Revere Life Insurance Company"]
[79340,"Pavonia Life Insurance Company of New York (First Central National)",{"$f":"+A117&\" (\"&B117&\")\"","v":"79340 (Pavonia Life Insurance Company of New York (First Central National))"},{"$f":"+A117&\"     \"&B117","v":"79340     Pavonia Life Insurance Company of New York (First Central National)"}]
[13588,"Penn Insurance & Annuity Company of NY (Vantis Life Insurance Company of New York)",{"$f":"+A118&\" (\"&B118&\")\"","v":"13588 (Penn Insurance & Annuity Company of NY (Vantis Life Insurance Company of New York))"},{"$f":"+A118&\"     \"&B118","v":"13588     Penn Insurance & Annuity Company of NY (Vantis Life Insurance Company of New York)"}]
[67644,"Penn Mutual Life Insurance Company","67644 (Penn Mutual Life Insurance Company)","67644     Penn Mutual Life Insurance Company"]
[56820,"Polish Falcons of America","56820 (Polish Falcons of America)","56820     Polish Falcons of America"]
[57622,"Polish National Alliance of the United States of North America","57622 (Polish National Alliance of the United States of North America)","57622     Polish National Alliance of the United States of North America"]
[56839,"Polish National Union of America","56839 (Polish National Union of America)","56839     Polish National Union of America"]
[57630,"Polish Roman Catholic Union of America","57630 (Polish Roman Catholic Union of America)","57630     Polish Roman Catholic Union of America"]
[57282,"Polish Union of America","57282 (Polish Union of America)","57282     Polish Union of America"]
[57649,"Polish Women's Alliance of America","57649 (Polish Women's Alliance of America)","57649     Polish Women's Alliance of America"]
[61271,"Principal Life Insurance Company","61271 (Principal Life Insurance Company)","61271     Principal Life Insurance Company"]
[88536,"Protective Life and Annuity Insurance Company","88536 (Protective Life and Annuity Insurance Company)","88536     Protective Life and Annuity Insurance Company"]
[56863,"Providence Association of Ukrainian Catholics in America","56863 (Providence Association of Ukrainian Catholics in America)","56863     Providence Association of Ukrainian Catholics in America"]
[68209,"Provident Life and Casualty Insurance Company","68209 (Provident Life and Casualty Insurance Company)","68209     Provident Life and Casualty Insurance Company"]
[97195,"Pruco Life Insurance Company of New Jersey","97195 (Pruco Life Insurance Company of New Jersey)","97195     Pruco Life Insurance Company of New Jersey"]
[86630,"Prudential Annuities Life Assurance Corp","86630 (Prudential Annuities Life Assurance Corp)","86630     Prudential Annuities Life Assurance Corp"]
[68241,"Prudential Insurance Company of America","68241 (Prudential Insurance Company of America)","68241     Prudential Insurance Company of America"]
[93629,"Prudential Retirement Insurance and Annuity Company","93629 (Prudential Retirement Insurance and Annuity Company)","93629     Prudential Retirement Insurance and Annuity Company"]
[61360,"ReliaStar Life Insurance Company of New York","61360 (ReliaStar Life Insurance Company of New York)","61360     ReliaStar Life Insurance Company of New York"]
[15638,"Renaissance Life & Health Insurance Company of New York","15638 (Renaissance Life & Health Insurance Company of New York)","15638     Renaissance Life & Health Insurance Company of New York"]
[61506,"Resource Life Insurance Company","61506 (Resource Life Insurance Company)","61506     Resource Life Insurance Company"]
[80594,"RiverSource Life Insurance Company of New York",{"$f":"+A137&\" (\"&B137&\")\"","v":"80594 (RiverSource Life Insurance Company of New York)"},{"$f":"+A137&\"     \"&B137","v":"80594     RiverSource Life Insurance Company of New York"}]
[56871,"Russian Brotherhood Organization of the United States of America","56871 (Russian Brotherhood Organization of the United States of America)","56871     Russian Brotherhood Organization of the United States of America"]
[60176,"SBLI USA Mutual Life Insurance Company, Inc.","60176 (SBLI USA Mutual Life Insurance Company, Inc.)","60176     SBLI USA Mutual Life Insurance Company, Inc."]
[93742,"Securian Life Insurance Company","93742 (Securian Life Insurance Company)","93742     Securian Life Insurance Company"]
[68772,"Security Mutual Life Insurance Company of New York","68772 (Security Mutual Life Insurance Company of New York)","68772     Security Mutual Life Insurance Company of New York"]
[68829,"Sentry Life Insurance Company of New York","68829 (Sentry Life Insurance Company of New York)","68829     Sentry Life Insurance Company of New York"]
[56936,"Serb National Federation","56936 (Serb National Federation)","56936     Serb National Federation"]
[81434,"ShelterPoint Life Insurance Company (First Rehabilitation)",{"$f":"+A144&\" (\"&B144&\")\"","v":"81434 (ShelterPoint Life Insurance Company (First Rehabilitation))"},{"$f":"+A144&\"     \"&B144","v":"81434     ShelterPoint Life Insurance Company (First Rehabilitation)"}]
[57193,"Slovak Catholic Sokol","57193 (Slovak Catholic Sokol)","57193     Slovak Catholic Sokol"]
[57207,"Slovak Gymnastic Union \"Sokol\" of the United States of America","57207 (Slovak Gymnastic Union \"Sokol\" of the United States of America)","57207     Slovak Gymnastic Union \"Sokol\" of the United States of America"]
[57673,"Slovene National Benefit Society","57673 (Slovene National Benefit Society)","57673     Slovene National Benefit Society"]
[57142,"Sons of Norway","57142 (Sons of Norway)","57142     Sons of Norway"]
[89009,"Standard Life Insurance Company of New York","89009 (Standard Life Insurance Company of New York)","89009     Standard Life Insurance Company of New York"]
[69078,"Standard Security Life Insurance Company of New York","69078 (Standard Security Life Insurance Company of New York)","69078     Standard Security Life Insurance Company of New York"]
[69094,"State Farm Life and Accident Assurance Company","69094 (State Farm Life and Accident Assurance Company)","69094     State Farm Life and Accident Assurance Company"]
[77399,"Sterling Life Insurance Comapny ","77399 (Sterling Life Insurance Comapny )","77399     Sterling Life Insurance Comapny "]
[80926,"Sun Life and Health Insurance Company","80926 (Sun Life and Health Insurance Company)","80926     Sun Life and Health Insurance Company"]
[58181,"Supreme Council of the Royal Arcanum","58181 (Supreme Council of the Royal Arcanum)","58181     Supreme Council of the Royal Arcanum"]
[69310,"Surety Life Insurance Company","69310 (Surety Life Insurance Company)","69310     Surety Life Insurance Company"]
[82627,"Swiss Re Life & Health America Inc.","82627 (Swiss Re Life & Health America Inc.)","82627     Swiss Re Life & Health America Inc."]
[88072,"Talcott Resolution Life Insurance Co (Hartford Life Insurance Company)",{"$f":"+A157&\" (\"&B157&\")\"","v":"88072 (Talcott Resolution Life Insurance Co (Hartford Life Insurance Company))"},{"$f":"+A157&\"     \"&B157","v":"88072     Talcott Resolution Life Insurance Co (Hartford Life Insurance Company)"}]
[69345,"Teachers Insurance and Annuity Association of America","69345 (Teachers Insurance and Annuity Association of America)","69345     Teachers Insurance and Annuity Association of America"]
[56014,"Thrivent Financial for Lutherans","56014 (Thrivent Financial for Lutherans)","56014     Thrivent Financial for Lutherans"]
[60142,"TIAA-CREF Life Insurance Company","60142 (TIAA-CREF Life Insurance Company)","60142     TIAA-CREF Life Insurance Company"]
[82848,"Transamerica Advisors Life Insurance Company of New York","82848 (Transamerica Advisors Life Insurance Company of New York)","82848     Transamerica Advisors Life Insurance Company of New York"]
[70688,"Transamerica Financial Life Insurance Company","70688 (Transamerica Financial Life Insurance Company)","70688     Transamerica Financial Life Insurance Company"]
[13653,"Trustmark Life Insurance Company of New York","13653 (Trustmark Life Insurance Company of New York)","13653     Trustmark Life Insurance Company of New York"]
[57215,"Ukrainian National Association, Inc.","57215 (Ukrainian National Association, Inc.)","57215     Ukrainian National Association, Inc."]
[80314,"UniCARE Life & Health Insurance Company","80314 (UniCARE Life & Health Insurance Company)","80314     UniCARE Life & Health Insurance Company"]
[11596,"Unimerica Life Insurance Company of New York","11596 (Unimerica Life Insurance Company of New York)","11596     Unimerica Life Insurance Company of New York"]
[80837,"Union Central Life Insurance Company","80837 (Union Central Life Insurance Company)","80837     Union Central Life Insurance Company"]
[69744,"Union Labor Life Insurance Company","69744 (Union Labor Life Insurance Company)","69744     Union Labor Life Insurance Company"]
[81477,"Union Security Life Insurance Company of New York","81477 (Union Security Life Insurance Company of New York)","81477     Union Security Life Insurance Company of New York"]
[70106,"United States Life Insurance Company in the City of New York","70106 (United States Life Insurance Company in the City of New York)","70106     United States Life Insurance Company in the City of New York"]
[60228,"USAA Life Insurance Company of New York",{"$f":"+A171&\" (\"&B171&\")\"","v":"60228 (USAA Life Insurance Company of New York)"},{"$f":"+A171&\"     \"&B171","v":"60228     USAA Life Insurance Company of New York"}]
[70238,"Variable Annuity Life Insurance Company","70238 (Variable Annuity Life Insurance Company)","70238     Variable Annuity Life Insurance Company"]
[86509,"Voya Retirement Inusrance & Annuity Company (Ing Life Ins & Annuity Co)",{"$f":"+A173&\" (\"&B173&\")\"","v":"86509 (Voya Retirement Inusrance & Annuity Company (Ing Life Ins & Annuity Co))"},{"$f":"+A173&\"     \"&B173","v":"86509     Voya Retirement Inusrance & Annuity Company (Ing Life Ins & Annuity Co)"}]
[62413,"Wilac Life Insurance Co (formerly Continental Assurance Co)",{"$f":"+A174&\" (\"&B174&\")\"","v":"62413 (Wilac Life Insurance Co (formerly Continental Assurance Co))"},{"$f":"+A174&\"     \"&B174","v":"62413     Wilac Life Insurance Co (formerly Continental Assurance Co)"}]
[57010,"William Penn Association","57010 (William Penn Association)","57010     William Penn Association"]
[66230,"William Penn Life Insurance Company of New York","66230 (William Penn Life Insurance Company of New York)","66230     William Penn Life Insurance Company of New York"]
[60704,"Wilton Reassurance Life Ins Co of NY","60704 (Wilton Reassurance Life Ins Co of NY)","60704     Wilton Reassurance Life Ins Co of NY"]
[56170,"Woman's Life Insurance Society","56170 (Woman's Life Insurance Society)","56170     Woman's Life Insurance Society"]
[57320,"Woodmen of the World Life Insurance Society","57320 (Woodmen of the World Life Insurance Society)","57320     Woodmen of the World Life Insurance Society"]
[57290,"Workmen's Benefit Fund of the United States of America","57290 (Workmen's Benefit Fund of the United States of America)","57290     Workmen's Benefit Fund of the United States of America"]
[14178,"Zurich American Life Insurance Company of New York","14178 (Zurich American Life Insurance Company of New York)","14178     Zurich American Life Insurance Company of New York"]
["ZZZZZ","Insurer not listed","ZZZZZ (Insurer not listed)","ZZZZZ     Insurer not listed"]